Workbook

Sheet Index
B1: ='Input | General'!$B$1 -> Jemena Electricity 2027-31 Final decision - Capital expenditure sharing scheme model
B2: Index
C4: Model index
C6: Sheet Name | D6: Sheet Description
C7: Input | General | D7: Inputs NSP name, regulatory years for the prior and forecast regulatory control period etc.
C8: Input | Inflation and Disc Rate | D8: Inputs the inflation and discount rate
C9: Input | Reported Capex | D9: Inputs the reported capital expenditure from the prior regulatory control period as well as the AER's forecast etc.
C10: Calc | CESS Revenue Increments | D10: Calculates the CESS payments from the prior regulatory control period
C11: Output | Models | D11: Outputs the CESS revenue increments needed as a post tax revenue model input
C13: End

Sheet Change Log
B1: ='Input | General'!B1 -> Jemena Electricity 2027-31 Final decision - Capital expenditure sharing scheme model
B2: Change Log
B4: Model change log
C6: Starting model name ----> | D6: AER – CESS model - draft decision - Jemena Electricity determination 2026-31
C8: Model changes to above model
C10: Model sheet | D10: Reference | E10: Cell reference | F10: Type | G10: Legend | H10: Comments
C12: =SheetName('Input | General'!$A$1) -> Input | General | D12: 1 | E12: =CellReference('Input | General'!D7) -> D7 | F12: Input | H12: Updated determination stage to 'revised proposal'
C13: =SheetName('Input | General'!$A$1) -> Input | General | D13: =+D12+1 -> 2 | E13: =CellReference('Input | General'!G15) -> G15 | F13: Input | H13: Updated label to 'actual'
C16: Model sheet | D16: Reference | E16: Cell reference | F16: Type | G16: Legend | H16: Comments
C18: =SheetName('Input | Inflation and Disc Rate'!$A$1) -> Input | Inflation and Disc Rate | D18: =+D13+1 -> 3 | E18: =CellReference('Input | Inflation and Disc Rate'!K8) -> K8 | F18: Input | H18: Updated to actual CPI
C19: =SheetName('Input | Inflation and Disc Rate'!$A$1) -> Input | Inflation and Disc Rate | D19: =+D18+1 -> 4 | E19: =CellReference('Input | Inflation and Disc Rate'!L9:P9) -> L9:P9 | F19: Input | H19: Updated inflation forecast to align with PTRM
C20: =SheetName('Input | Inflation and Disc Rate'!$A$1) -> Input | Inflation and Disc Rate | D20: =+D19+1 -> 5 | E20: =CellReference('Input | Inflation and Disc Rate'!L14:P14) -> L14:P14 | F20: Input | H20: Updated inflation forecast to align with PTRM
C21: =SheetName('Input | Inflation and Disc Rate'!$A$1) -> Input | Inflation and Disc Rate | D21: =+D20+1 -> 6 | E21: =CellReference('Input | Inflation and Disc Rate'!L21:P21) -> L21:P21 | F21: Input | H21: Updated WACC to align with PTRM
C24: Model sheet | D24: Reference | E24: Cell reference | F24: Type | G24: Legend | H24: Comments
C26: =SheetName('Input | Reported Capex'!$A$1) -> Input | Reported Capex | D26: =+D21+1 -> 7 | E26: =CellReference('Input | Reported Capex'!K8:K20) -> K8:K20 | F26: Input | H26: Updated for FY25 audited actuals
C27: =SheetName('Input | Reported Capex'!$A$1) -> Input | Reported Capex | D27: =+D26+1 -> 8 | E27: =CellReference('Input | Reported Capex'!L8:L20) -> L8:L20 | F27: Input | H27: Updated for FY26 forecast
C28: =SheetName('Input | Reported Capex'!$A$1) -> Input | Reported Capex | D28: =+D27+1 -> 9 | E28: =CellReference('Input | Reported Capex'!H19:J19) -> H19:J19 | F28: Input | H28: Updated for change of treatment from 'as commissioned' to 'as incurred'
B30: End

Sheet AER amendments
A1: # | B1: Sheet | C1: Reference | D1: Notes
A2: 1 | B2: Input | General | C2: D7 | D2: Set up data validation and changed project stage to draft decision
A3: 2 | B3: Input | Inflation and Disc Rate | C3: K13 | D3: Updated estimated CPI with actual
A4: 3 | B4: Input | Inflation and Disc Rate | C4: L14 | D4: Updated forecast CPI for 2026-31 period
A5: 4 | B5: Input | Inflation and Disc Rate | C5: M14:P14 | D5: Amended formula to refer to the forecast CPI as at 2026-27
A6: 5 | B6: Input | Inflation and Disc Rate | C6: L21:P21 | D6: Updated 26-31 real vanilla WACC
A7: 6 | B7: Input | Reported Capex | C7: H18,J18 | D7: Unrounded actual capex
A9: The AER's draft decision amendments are highlighted in green

Sheet Input | General
B1: =$D$6&" "&$D$8&" "&D7&" - "&"Capital expenditure sharing scheme model" -> Jemena Electricity 2027-31 Final decision - Capital expenditure sharing scheme model | G1: Key: | H1: Input | I1: Internal Link or calculation | J1: JEN - RP
B2: Input | General
B4: Input | General
C6: NSP Name | D6: Jemena Electricity
C7: Determination stage | D7: Final decision
C8: Determination years | D8: 2027-31
C9: Base regulatory year | D9: 2026-27
C11: Regulatory control period details
D12: Year 1 | E12: Year 2 | F12: Year 3 | G12: Year 4 | H12: Year 5
C13: Regulatory control period CESS applied in (regulatory years) | D13: =IF(LEN(E13)>4,CONCATENATE(LEFT(E13,4)-1&"–"&IF(RIGHT(E13,2)="00","99",IF(RIGHT(E13,2)-1<10,"0","")&RIGHT(E13,2)-1)),E13-1) -> 2021–22 | E13: =IF(LEN(F13)>4,CONCATENATE(LEFT(F13,4)-1&"–"&IF(RIGHT(F13,2)="00","99",IF(RIGHT(F13,2)-1<10,"0","")&RIGHT(F13,2)-1)),F13-1) -> 2022–23 | F13: =IF(LEN(G13)>4,CONCATENATE(LEFT(G13,4)-1&"–"&IF(RIGHT(G13,2)="00","99",IF(RIGHT(G13,2)-1<10,"0","")&RIGHT(G13,2)-1)),G13-1) -> 2023–24 | G13: =IF(LEN(H13)>4,CONCATENATE(LEFT(H13,4)-1&"–"&IF(RIGHT(H13,2)="00","99",IF(RIGHT(H13,2)-1<10,"0","")&RIGHT(H13,2)-1)),H13-1) -> 2024–25 | H13: =IF(LEN(D9)>4,CONCATENATE(LEFT(D9,4)-1&"–"&IF(RIGHT(D9,2)="00","99",IF(RIGHT(D9,2)-1<10,"0","")&RIGHT(D9,2)-1)),D9-1) -> 2025–26
C14: CESS to apply to this year's expenditure (Yes/No) | D14: Yes | E14: Yes | F14: Yes | G14: Yes | H14: Yes
C15: Actual or estimate year | D15: Actual | E15: Actual | F15: Actual | G15: Actual | H15: Estimate
D17: Year 1 | E17: Year 2 | F17: Year 3 | G17: Year 4 | H17: Year 5
C18: Regulatory control period CESS revenue increment applied in (regulatory years) | D18: =D9 -> 2026-27 | E18: =IF(LEN(D18)>4,CONCATENATE(LEFT(D18,4)+1&"–"&IF(RIGHT(D18,2)+1>9,"","0")&RIGHT(D18,2)+1),D18+1) -> 2027–28 | F18: =IF(LEN(E18)>4,CONCATENATE(LEFT(E18,4)+1&"–"&IF(RIGHT(E18,2)+1>9,"","0")&RIGHT(E18,2)+1),E18+1) -> 2028–29 | G18: =IF(LEN(F18)>4,CONCATENATE(LEFT(F18,4)+1&"–"&IF(RIGHT(F18,2)+1>9,"","0")&RIGHT(F18,2)+1),F18+1) -> 2029–30 | H18: =IF(LEN(G18)>4,CONCATENATE(LEFT(G18,4)+1&"–"&IF(RIGHT(G18,2)+1>9,"","0")&RIGHT(G18,2)+1),G18+1) -> 2030–31
B21: End

Sheet Input | Inflation and Disc Rate
B1: ='Input | General'!$B$1 -> Jemena Electricity 2027-31 Final decision - Capital expenditure sharing scheme model | H1: Key: | I1: Input | J1: Internal Link or calculation | K1: AER draft decision | L1: JEN - RP | M1: AER final decision
C2: Input | Inflation and Discount rate
C4: Input | Inflation
D6: Source | E6: Unit
F7: =IF(LEN(G7)>4,CONCATENATE(LEFT(G7,4)-1&"–"&IF(RIGHT(G7,2)="00","99",IF(RIGHT(G7,2)-1<10,"0","")&RIGHT(G7,2)-1)),G7-1) -> 2020–21 | G7: ='Input | General'!D13 -> 2021–22 | H7: ='Input | General'!E13 -> 2022–23 | I7: ='Input | General'!F13 -> 2023–24 | J7: ='Input | General'!G13 -> 2024–25 | K7: ='Input | General'!H13 -> 2025–26 | L7: ='Input | General'!D18 -> 2026-27 | M7: ='Input | General'!E18 -> 2027–28 | N7: ='Input | General'!F18 -> 2028–29 | O7: ='Input | General'!G18 -> 2029–30 | P7: ='Input | General'!H18 -> 2030–31
C8: Actual CPI Inflation Rate | D8: JEN | E8: Per cent | G8: 0.008605851979 | H8: 0.03498293515 | I8: 0.07831821929 | J8: 0.04051987768 | K8: 0.0242468773
C9: Forecast CPI Inflation Rate | D9: JEN | E9: Per cent | L9: =[1]!f -> 0.02659759351 | M9: =+L9 -> 0.02659759351 | N9: =+M9 -> 0.02659759351 | O9: 0.02659759351 | P9: 0.02659759351
C10: ="CPI Index (base year "&F7&")" -> CPI Index (base year 2020–21) | D10: JEN | E10: Index | F10: 1 | G10: =IF(G7<>"",(F10*(1+G8)),"") -> 1.008605852 | H10: =IF(H7<>"",(G10*(1+H8)),"") -> 1.043889845 | I10: =IF(I7<>"",(H10*(1+I8)),"") -> 1.125645439 | J10: =IF(J7<>"",(I10*(1+J8)),"") -> 1.171256454 | K10: =IF(K7<>"",(J10*(1+K8)),"") -> 1.199655766 | L10: =IF(L7<>"",(K10*(1+L9)),"") -> 1.231563722 | M10: =IF(M7<>"",(L10*(1+M9)),"") -> 1.264320354 | N10: =IF(N7<>"",(M10*(1+N9)),"") -> 1.297948232 | O10: =IF(O7<>"",(N10*(1+O9)),"") -> 1.332470532 | P10: =IF(P7<>"",(O10*(1+P9)),"") -> 1.367911041
C13: Actual CPI Inflation Rate | D13: AER | E13: Per cent | G13: 0.008605851979 | H13: 0.03498293515 | I13: 0.07831821929 | J13: 0.04051987768 | K13: 0.0242468773
C14: Forecast CPI Inflation Rate | D14: AER | E14: Per cent | L14: 0.02619899211 | M14: =L14 -> 0.02619899211 | N14: =M14 -> 0.02619899211 | O14: 0.02619899211 | P14: 0.02619899211
C15: ="CPI Index (base year "&F7&")" -> CPI Index (base year 2020–21) | D15: AER | E15: Index | F15: 1 | G15: =IF(G7<>"",(F15*(1+G13)),"") -> 1.008605852 | H15: =IF(H7<>"",(G15*(1+H13)),"") -> 1.043889845 | I15: =IF(I7<>"",(H15*(1+I13)),"") -> 1.125645439 | J15: =IF(J7<>"",(I15*(1+J13)),"") -> 1.171256454 | K15: =IF(K7<>"",(J15*(1+K13)),"") -> 1.199655766 | L15: =IF(L7<>"",(K15*(1+L14)),"") -> 1.231085538 | M15: =IF(M7<>"",(L15*(1+M14)),"") -> 1.263338738 | N15: =IF(N7<>"",(M15*(1+N14)),"") -> 1.29643694 | O15: =IF(O7<>"",(N15*(1+O14)),"") -> 1.330402281 | P15: =IF(P7<>"",(O15*(1+P14)),"") -> 1.36525748
C17: Input | Discount rate
D19: Source | E19: Unit | G19: =G7 -> 2021–22 | H19: =H7 -> 2022–23 | I19: 2023–24 | J19: 2024–25 | K19: 2025–26 | L19: 2026-27 | M19: 2027–28 | N19: 2028–29 | O19: 2029–30 | P19: 2030–31
C20: Real Vanilla WACC | D20: JEN | E20: Per cent | G20: ='[2]RFM input'!H288 -> 0.02850449876 | H20: ='[2]RFM input'!I288 -> 0.02726219488 | I20: ='[2]RFM input'!J288 -> 0.02789729935 | J20: ='[2]RFM input'!K288 -> 0.02847280208 | K20: ='[2]RFM input'!L288 -> 0.02867184166
C21: Forecast Real Vanilla WACC | D21: AER | E21: Per cent | L21: 0.03462910819 | M21: 0.03526647974 | N21: 0.0358776665 | O21: 0.03678370379 | P21: 0.0383595767
C22: Nominal Vanilla WACC (fixed, real, time varying) | D22: Calculated | E22: Per cent | G22: =IF(AND(G13<>"",G20<>""),((1+G20)*(1+G13)-1),"") -> 0.03735565624 | H22: =IF(AND(H13<>"",H20<>""),((1+H20)*(1+H13)-1),"") -> 0.06319884163 | I22: =IF(AND(I13<>"",I20<>""),((1+I20)*(1+I13)-1),"") -> 0.1084003854 | J22: =IF(AND(J13<>"",J20<>""),((1+J20)*(1+J13)-1),"") -> 0.07014639421 | K22: =IF(AND(K13<>"",K20<>""),((1+K20)*(1+K13)-1),"") -> 0.05361392158 | L22: =IF(AND(L14<>"",L21<>""),((1+L21)*(1+L14)-1),"") -> 0.06173534804 | M22: =IF(AND(M14<>"",M21<>""),((1+M21)*(1+M14)-1),"") -> 0.06238941807 | N22: =IF(AND(N14<>"",N21<>""),((1+N21)*(1+N14)-1),"") -> 0.06301661731 | O22: =IF(AND(O14<>"",O21<>""),((1+O21)*(1+O14)-1),"") -> 0.06394639187 | P22: =IF(AND(P14<>"",P21<>""),((1+P21)*(1+P14)-1),"") -> 0.06556355106
B24: End

Sheet Input | Reported Capex
B1: ='Input | General'!$B$1 -> Jemena Electricity 2027-31 Final decision - Capital expenditure sharing scheme model | I1: Key: | J1: Input | K1: Internal Link or calculation | L1: JEN - RP | M1: AER draft decision | N1: AER final decision
B2: Input | Capex
B4: Input | Capex Allowance
D6: Source | E6: Unit | F6: Basis | H6: =IF('Input | General'!D14="Yes",'Input | General'!D13,"n/a") -> 2021–22 | I6: =IF('Input | General'!E14="Yes",'Input | General'!E13,"n/a") -> 2022–23 | J6: =IF('Input | General'!F14="Yes",'Input | General'!F13,"n/a") -> 2023–24 | K6: =IF('Input | General'!G14="Yes",'Input | General'!G13,"n/a") -> 2024–25 | L6: =IF('Input | General'!H14="Yes",'Input | General'!H13,"n/a") -> 2025–26
C8: Total capex allowance (includes customer contributions) | D8: JEN | E8: $millions | F8: ='Input | Inflation and Disc Rate'!$F$7 -> 2020–21 | H8: 180.4761253 | I8: 173.6283024 | J8: 157.3707654 | K8: 148.0260064 | L8: 153.9261279
C9: Customer Contributions | D9: JEN | E9: $millions | F9: ='Input | Inflation and Disc Rate'!$F$7 -> 2020–21 | H9: 26.1907471 | I9: 26.59280162 | J9: 27.46866407 | K9: 27.34961034 | L9: 26.27565915
C10: Asset Disposals | D10: JEN | E10: $millions | F10: ='Input | Inflation and Disc Rate'!$F$7 -> 2020–21 | H10: 0.1906195156 | I10: 0.06920654009 | J10: 0.08196696619 | K10: 0.06303310639 | L10: 0.08832330008
C12: Total capex allowance applicable to CESS | D12: Calculated | E12: $millions | F12: ='Input | Inflation and Disc Rate'!$F$7 -> 2020–21 | H12: =IF(H6="", "", H8-H9-H10) -> 154.0947587 | I12: =IF(I6="", "", I8-I9-I10) -> 146.9662943 | J12: =IF(J6="", "", J8-J9-J10) -> 129.8201344 | K12: =IF(K6="", "", K8-K9-K10) -> 120.6133629 | L12: =IF(L6="", "", L8-L9-L10) -> 127.5621455
B14: Input | Actual / Estimate Capex
D16: Source | E16: Unit | F16: Basis | H16: =H6 -> 2021–22 | I16: =I6 -> 2022–23 | J16: =J6 -> 2023–24 | K16: =K6 -> 2024–25 | L16: =L6 -> 2025–26
C18: Total capex (includes customer contributions) | D18: JEN | E18: $millions | F18: nominal | H18: ='[2]RFM input'!$H$111-'[2]RFM input'!$H$110 -> 180.1880639 | I18: ='[2]RFM input'!I111 -> 220.2120979 | J18: 231.6682443 | K18: ='[2]RFM input'!K111 -> 324.1423789 | L18: ='[2]RFM input'!L111 -> 321.5510578
C19: Customer Contributions | D19: JEN | E19: $millions | F19: nominal | H19: 67.31780446 | I19: 71.782318 | J19: 93.026371 | K19: 69.43044799 | L19: 141.2848901
C20: Asset Disposals | D20: JEN | E20: $millions | F20: nominal | H20: ='[2]RFM input'!H165 -> 0.41294468 | I20: ='[2]RFM input'!I165 -> 0.27738953 | J20: ='[2]RFM input'!J165 -> 0.232607 | K20: ='[2]RFM input'!K165 -> 0.02876496 | L20: ='[2]RFM input'!L165 -> 0.3948404525
C21: Other excludable capex | D21: JEN | E21: $millions | F21: nominal
C23: Total actual capex applicable to CESS | D23: Calculated | E23: $millions | F23: nominal | H23: =IF(H16="", "", H18-H19-H20-H21) -> 112.4573148 | I23: =IF(I16="", "", I18-I19-I20-I21) -> 148.1523903 | J23: =IF(J16="", "", J18-J19-J20-J21) -> 138.4092663 | K23: =IF(K16="", "", K18-K19-K20-K21) -> 254.683166 | L23: =IF(L16="", "", L18-L19-L20-L21) -> 179.8713273
C24: Total actual capex applicable to CESS | D24: Calculated | E24: $millions | F24: ='Input | Inflation and Disc Rate'!$F$7 -> 2020–21 | H24: =H23/'Input | Inflation and Disc Rate'!G15 -> 111.4977814 | I24: =I23/'Input | Inflation and Disc Rate'!H15 -> 141.9233945 | J24: =J23/'Input | Inflation and Disc Rate'!I15 -> 122.9599139 | K24: =K23/'Input | Inflation and Disc Rate'!J15 -> 217.4444077 | L24: =L23/'Input | Inflation and Disc Rate'!K15 -> 149.9357836
B26: Input | Capex Deferred to following regulatory period
H28: ='Input | General'!D18 -> 2026-27 | I28: ='Input | General'!E18 -> 2027–28 | J28: ='Input | General'!F18 -> 2028–29 | K28: ='Input | General'!G18 -> 2029–30 | L28: ='Input | General'!H18 -> 2030–31
C30: Capex deferred and re-proposed | D30: JEN | E30: $millions | F30: nominal | H30: 0 | I30: 0 | J30: 0 | K30: 0 | L30: 0
C31: Capex deferred and re-proposed | D31: Calculated | E31: $millions | F31: ='Input | Inflation and Disc Rate'!$F$7 -> 2020–21 | H31: =IF(H30<>"",H30/('Input | Inflation and Disc Rate'!K10*(1+'Input | Inflation and Disc Rate'!L9)^0.5),"") -> 0 | I31: =IF(I30<>"",I30/('Input | Inflation and Disc Rate'!L10*(1+'Input | Inflation and Disc Rate'!M9)^0.5),"") -> 0 | J31: =IF(J30<>"",J30/('Input | Inflation and Disc Rate'!M10*(1+'Input | Inflation and Disc Rate'!N9)^0.5),"") -> 0 | K31: =IF(K30<>"",K30/('Input | Inflation and Disc Rate'!N10*(1+'Input | Inflation and Disc Rate'!O9)^0.5),"") -> 0 | L31: =IF(L30<>"",L30/('Input | Inflation and Disc Rate'!O10*(1+'Input | Inflation and Disc Rate'!P9)^0.5),"") -> 0
C32: Capex deferred and re-proposed | D32: Calculated | E32: $millions | F32: nominal | H32: =IF(H30<>"",H31*'Input | Inflation and Disc Rate'!K15*(1+'Input | Inflation and Disc Rate'!L14)^0.5,"") -> 0 | I32: =IF(I30<>"",I31*'Input | Inflation and Disc Rate'!L15*(1+'Input | Inflation and Disc Rate'!M14)^0.5,"") -> 0 | J32: =IF(J30<>"",J31*'Input | Inflation and Disc Rate'!M15*(1+'Input | Inflation and Disc Rate'!N14)^0.5,"") -> 0 | K32: =IF(K30<>"",K31*'Input | Inflation and Disc Rate'!N15*(1+'Input | Inflation and Disc Rate'!O14)^0.5,"") -> 0 | L32: =IF(L30<>"",L31*'Input | Inflation and Disc Rate'!O15*(1+'Input | Inflation and Disc Rate'!P14)^0.5,"") -> 0
B34: End

Sheet Calc | CESS Revenue Increments
B1: ='Input | General'!$B$1 -> Jemena Electricity 2027-31 Final decision - Capital expenditure sharing scheme model | K1: Key: | L1: Input | M1: Internal Link or calculation
B2: Input | CESS Payments
B4: Calc | NPV of CESS payments
C6: Regulatory period 1
C7: Year | D7: =IF('Input | General'!D14="Yes",'Input | General'!D13,"n/a") -> 2021–22 | E7: =IF('Input | General'!E14="Yes",'Input | General'!E13,"n/a") -> 2022–23 | F7: =IF('Input | General'!F14="Yes",'Input | General'!F13,"n/a") -> 2023–24 | G7: =IF('Input | General'!G14="Yes",'Input | General'!G13,"n/a") -> 2024–25 | H7: =IF('Input | General'!H14="Yes",'Input | General'!H13,"n/a") -> 2025–26
C8: Discount rate (Real WACC) | D8: ='Input | Inflation and Disc Rate'!G20 -> 0.02850449876 | E8: ='Input | Inflation and Disc Rate'!H20 -> 0.02726219488 | F8: ='Input | Inflation and Disc Rate'!I20 -> 0.02789729935 | G8: ='Input | Inflation and Disc Rate'!J20 -> 0.02847280208 | H8: ='Input | Inflation and Disc Rate'!K20 -> 0.02867184166
C9: Discount rate (Nominal, fixed real WACC) | D9: ='Input | Inflation and Disc Rate'!G22 -> 0.03735565624 | E9: ='Input | Inflation and Disc Rate'!H22 -> 0.06319884163 | F9: ='Input | Inflation and Disc Rate'!I22 -> 0.1084003854 | G9: ='Input | Inflation and Disc Rate'!J22 -> 0.07014639421 | H9: ='Input | Inflation and Disc Rate'!K22 -> 0.05361392158
C10: Capex allowance | D10: ='Input | Reported Capex'!H$12*'Input | Inflation and Disc Rate'!G$15*(1+'Input | Inflation and Disc Rate'!G$20)^0.5 -> 157.6204084 | E10: ='Input | Reported Capex'!I$12*'Input | Inflation and Disc Rate'!H$15*(1+'Input | Inflation and Disc Rate'!H$20)^0.5 -> 155.4937972 | F10: ='Input | Reported Capex'!J$12*'Input | Inflation and Disc Rate'!I$15*(1+'Input | Inflation and Disc Rate'!I$20)^0.5 -> 148.1557573 | G10: ='Input | Reported Capex'!K$12*'Input | Inflation and Disc Rate'!J$15*(1+'Input | Inflation and Disc Rate'!J$20)^0.5 -> 143.2662289 | H10: ='Input | Reported Capex'!L$12*'Input | Inflation and Disc Rate'!K$15*(1+'Input | Inflation and Disc Rate'!K$20)^0.5 -> 155.208995
C11: Actual capex | D11: ='Input | Reported Capex'!H23*(1+D$9)^0.5 -> 114.5385152 | E11: ='Input | Reported Capex'!I23*(1+E$9)^0.5 -> 152.7622021 | F11: ='Input | Reported Capex'!J23*(1+F$9)^0.5 -> 145.7181002 | G11: ='Input | Reported Capex'!K23*(1+G$9)^0.5 -> 263.4643367 | H11: ='Input | Reported Capex'!L23*(1+H$9)^0.5 -> 184.6301785
C12: Underspend | D12: =(D10-D11) -> 43.08189323 | E12: =(E10-E11) -> 2.731595048 | F12: =(F10-F11) -> 2.437657106 | G12: =(G10-G11) -> -120.1981078 | H12: =(H10-H11) -> -29.4211835
C13: Year 1 benefit | E13: =$D$12*$E$8 -> 1.174506969 | F13: =$D$12*$F$8*(1+'Input | Inflation and Disc Rate'!H13) -> 1.243913359 | G13: =$D$12*$G$8*(1+'Input | Inflation and Disc Rate'!H13)*(1+'Input | Inflation and Disc Rate'!I13) -> 1.369005275 | H13: =$D$12*$H$8*(1+'Input | Inflation and Disc Rate'!H13)*(1+'Input | Inflation and Disc Rate'!I13)*(1+'Input | Inflation and Disc Rate'!J13) -> 1.434435033
C14: Year 2 benefit | F14: =$E$12*F$8 -> 0.07620412476 | G14: =$E$12*G$8*(1+'Input | Inflation and Disc Rate'!I13) -> 0.08386745593 | H14: =$E$12*H$8*(1+'Input | Inflation and Disc Rate'!I13)*(1+'Input | Inflation and Disc Rate'!J13) -> 0.08787578765
C15: Year 3 benefit | G15: =$F$12*G$8 -> 0.06940692831 | H15: =$F$12*$H$8*(1+'Input | Inflation and Disc Rate'!J13) -> 0.07272413865
C16: Year 4 benefit | H16: =$G$12*$H$8 -> -3.446301115
C17: Year 5 benefit
C18: Total financing benefit | D18: =SUM(D13:D17) -> 0 | E18: =SUM(E13:E17) -> 1.174506969 | F18: =SUM(F13:F17) -> 1.320117484 | G18: =SUM(G13:G17) -> 1.52227966 | H18: =SUM(H13:H17) -> -1.851266156
C19: Discount factor (end of year) | D19: =E19*(1+E$9) -> 1.328727293 | E19: =F19*(1+F$9) -> 1.249744865 | F19: =G19*(1+G$9) -> 1.127521139 | G19: =H19*(1+H$9) -> 1.053613922 | H19: 1
C20: NPV underspend | D20: =D12*D19 -> 57.24408737 | E20: =E12*E19 -> 3.413796885 | F20: =F12*F19 -> 2.748509916 | G20: =G12*G19 -> -126.6423997 | H20: =H12*H19 -> -29.4211835
C21: NPV financing benefit | D21: =D18*D19 -> 0 | E21: =E18*E19 -> 1.467834054 | F21: =F18*F19 -> 1.488460369 | G21: =G18*G19 -> 1.603895042 | H21: =H18*H19 -> -1.851266156
C23: Regulatory period 2
C24: Year | D24: ='Input | General'!$D$18 -> 2026-27 | E24: ='Input | General'!$E$18 -> 2027–28 | F24: ='Input | General'!$F$18 -> 2028–29 | G24: ='Input | General'!$G$18 -> 2029–30 | H24: ='Input | General'!$H$18 -> 2030–31
C25: Discount rate: | D25: ='Input | Inflation and Disc Rate'!L$22 -> 0.06173534804 | E25: ='Input | Inflation and Disc Rate'!M$22 -> 0.06238941807 | F25: ='Input | Inflation and Disc Rate'!N$22 -> 0.06301661731 | G25: ='Input | Inflation and Disc Rate'!O$22 -> 0.06394639187 | H25: ='Input | Inflation and Disc Rate'!P$22 -> 0.06556355106
C26: Increase in forecast capex in regulatory period 2 attributable to capex deferred in regulatory period 1 | D26: ='Input | Reported Capex'!H32 -> 0 | E26: ='Input | Reported Capex'!I32 -> 0 | F26: ='Input | Reported Capex'!J32 -> 0 | G26: ='Input | Reported Capex'!K32 -> 0 | H26: ='Input | Reported Capex'!L32 -> 0
C27: Discount factor (middle of year 5) | D27: =1/(1+D25)^(0.5) -> 0.9704917811 | E27: =1/((1+E25)^(0.5)*(1+D25)) -> 0.9137804357 | F27: =1/((1+F25)^(0.5)*(1+E25)*(1+D25)) -> 0.8598643838 | G27: =1/((1+G25)^(0.5)*(1+F25)*(1+E25)*(1+D25)) -> 0.8085373015 | H27: =1/((1+H25)^(0.5)*(1+G25)*(1+F25)*(1+E25)*(1+D25)) -> 0.7593648833
C28: NPV of increase in forecast capex from deferred capex | D28: =D26*D27 -> 0 | E28: =E26*E27 -> 0 | F28: =F26*F27 -> 0 | G28: =G26*G27 -> 0 | H28: =H26*H27 -> 0
C30: CESS calculation (post-adjustment)
C31: Forecast capex | D31: =SUM('Input | Reported Capex'!H12:L12) -> 679.0566958
C32: Actual capex | D32: =SUM('Input | Reported Capex'!H24:L24) -> 743.7612811
C33: Underspend or Overspend, % | D33: =(D31-D32)/D31 -> -0.09528598379
C34: Relevant sharing ratio | D34: 0.3
C35: Total underspend (NPV) adjusted for deferrals | D35: =SUM(D20:H20)-SUM(D28:H28) -> -92.65718906
C36: Consumer share | D36: =D35-D37 -> -64.86003235
C37: NSP share | D37: =D34*D35 -> -27.79715672
C38: Total NSP financing benefit (NPV) | D38: =SUM(D21:H21) -> 2.708923309
C39: NPV of CESS payments (post-adjustment) | D39: =D37-D38 -> -30.50608003
B41: Calc | Total CESS Payments
D43: ='Input | General'!D18 -> 2026-27 | E43: ='Input | General'!E18 -> 2027–28 | F43: ='Input | General'!F18 -> 2028–29 | G43: ='Input | General'!G18 -> 2029–30 | H43: ='Input | General'!H18 -> 2030–31
C44: Discount factor | D44: =1/(1+'Input | Inflation and Disc Rate'!L21) -> 0.9665299305 | E44: =D44/(1+'Input | Inflation and Disc Rate'!M21) -> 0.9336049697 | F44: =E44/(1+'Input | Inflation and Disc Rate'!N21) -> 0.9012695224 | G44: =F44/(1+'Input | Inflation and Disc Rate'!O21) -> 0.8692936811 | H44: =G44/(1+'Input | Inflation and Disc Rate'!P21) -> 0.8371798177
C45: =CONCATENATE("CESS Payment Per Year ($", 'Output | Models'!$F$8," million)") -> CESS Payment Per Year ($2025–26 million) | D45: =D39/(SUM(D44:H44)) -> -6.767281759 | E45: =D45 -> -6.767281759 | F45: =E45 -> -6.767281759 | G45: =F45 -> -6.767281759 | H45: =G45 -> -6.767281759
C47: =CONCATENATE("Total CESS Payment ($", 'Output | Models'!$F$4," million)") -> Total CESS Payment ($ million) | D47: =SUM(D45:H45) -> -33.83640879
B50: End

Sheet Output | Models
B1: ='Input | General'!$B$1 -> Jemena Electricity 2027-31 Final decision - Capital expenditure sharing scheme model | K1: Key: | L1: Input | M1: Internal Link
B2: Output | Models
B4: Inputs for Post Tax Revenue Model | J4: Note. The dollar base should be consistent with the post tax revenue model
C6: Revenue Adjustments | D6: Source | E6: Unit | F6: Basis | J6: ='Calc | CESS Revenue Increments'!D43 -> 2026-27 | K6: ='Calc | CESS Revenue Increments'!E43 -> 2027–28 | L6: ='Calc | CESS Revenue Increments'!F43 -> 2028–29 | M6: ='Calc | CESS Revenue Increments'!G43 -> 2029–30 | N6: ='Calc | CESS Revenue Increments'!H43 -> 2030–31 | O6: Total
C8: CESS increments as per NER 6A.5.4(a)(5) | D8: Calc | CESS Revenue Increments | E8: $millions | F8: =IF(LEN(J6)>4,CONCATENATE(LEFT(J6,4)-1&"–"&IF(RIGHT(J6,2)="00","99",IF(RIGHT(J6,2)-1<10,"0","")&RIGHT(J6,2)-1)),J6-1) -> 2025–26 | J8: ='Calc | CESS Revenue Increments'!D45 -> -6.767281759 | K8: ='Calc | CESS Revenue Increments'!E45 -> -6.767281759 | L8: ='Calc | CESS Revenue Increments'!F45 -> -6.767281759 | M8: ='Calc | CESS Revenue Increments'!G45 -> -6.767281759 | N8: ='Calc | CESS Revenue Increments'!H45 -> -6.767281759 | O8: =SUM(J8:N8) -> -33.83640879
B11: End
